Cogmind - Beta 13 @@@ ROGUE MODE // 2024.04.17 @ 21:43:45 Player: Bace Troncons Result: Destroyed by S-10 Pest with Light Assault Rifle Performance ------------- Evolutions (0) 0 Regions Visited (2) 400 Robots Destroyed (24) 120 Value Destroyed (433) 433 Prototype IDs (6) 120 Alien Tech Used (0) 0 Bonus (10) 10 TOTAL SCORE: 1083 Bonus ------- High Alert Combat Kills 10 Cogmind --------- Core Integrity 0/250 Matter 15/300 Energy 97/100 System Corruption 0% Temperature Cool (0) Movement Rolling (115) Ox1 Location -10/Subcaves Parts ------- > --- POWER (1) -------- (None) > --- PROPULSION (2) --- Compact Wheel > --- UTILITY (2) ------ Large Storage Unit > --- WEAPON (2) ------- Hammer > --- INVENTORY (15) --- Heat Sink Small Storage Unit Structural Scanner Terrain Scan Processor Light Assault Rifle Hammer Peak State ------------ > --- POWER ------------ Ion Engine > --- PROPULSION ------- Compact Wheel Compact Wheel > --- UTILITY ---------- Large Storage Unit Seismic Detector > --- WEAPON ----------- Light Assault Rifle Rocket Launcher > --- INVENTORY -------- Ion Engine Light Treads Light Treads Heat Sink Small Storage Unit Terrain Scan Processor Rocket Launcher Hammer Hammer [Rating: 9] Favorites ----------- Power Ion Engine Engine Ion Engine Propulsion Compact Wheel Treads Light Treads Wheel Compact Wheel Utility Seismic Detector Device Seismic Detector Storage Large Storage Unit Processor Targeting Computer Weapon Light Assault Rifle Energy Gun EM Pulse Gun Ballistic Gun Light Assault Rifle Launcher Rocket Launcher Impact Weapon Hammer Build | -11 -10 -10 ------- Run | Yrd Mat Sub Slots Evolved . | . . . Power . | . . . Propulsion . | . . . Utility . | . . . Weapon . | . . . Parts Attached 18 | 6 6 6 Power 3 | 1 1 1 Engine 3 | 1 1 1 Core . | . . . Reactor . | . . . Propulsion 5 | 2 . 3 Treads 2 | . . 2 Leg . | . . . Wheel 3 | 2 . 1 Hover . | . . . Flight . | . . . Utility 4 | 1 3 . Device 1 | . 1 . Storage 2 | 1 1 . Processor 1 | . 1 . Hackware . | . . . Protection . | . . . Artifact . | . . . Weapon 6 | 2 2 2 Energy Gun 1 | 1 . . Energy Cannon . | . . . Ballistic Gun 2 | 1 1 . Ballistic Cannon . | . . . Launcher 2 | . 1 1 Special Weapon . | . . . Impact Weapon 1 | . . 1 Slashing Weapon . | . . . Piercing Weapon . | . . . Special Melee Weapon . | . . . Unidentified Prototypes . | . . . Parts Lost 9 | . . 9 Power 2 | . . 2 Propulsion 3 | . . 3 Utility 1 | . . 1 Weapon 3 | . . 3 Highest Loss Streak 3 | . . 3 To Critical Strikes . | . . . Average Slot Usage (%) 95 | . 99 83 Engine 14 | . 14 14 Treads 5 | . . 22 Wheel 21 | . 28 3 Device 11 | . 13 4 Storage 14 | . 14 14 Energy Gun 3 | . 4 . Ballistic Gun 12 | . 13 9 Launcher 9 | . 9 9 Impact Weapon 1 | . . 4 Naked Turns . | . . . Heaviest Build 32 | 13 32 32 Greatest Support 40 | 32 32 40 Greatest Overweight (x) 8 | . . 8 Average Overweight (x) . | . . . Largest Inventory Capacity 15 | 8 15 15 Average Capacity 13 | 7 12 15 Most Carried 12 | 5 12 11 Average Carried 8 | 2 8 8 Final Capacity 15 | 8 15 15 Final Carried 11 | 3 11 6 Class Distribution -------------------- 100% | Mutant Dominant Class ---------------- Mutant | -10/Materials Mutant | -10/Subcaves Resources | -11 -10 -10 ----------- Run | Yrd Mat Sub Matter Collected 435 | 157 273 5 Remotely . | . . . Salvage Created 468 | . 438 30 Parts 56 | . 52 4 Haulers Intercepted 2 | . 2 . Recyclers Shooed . | . . . Parts Field Recycled . | . . . Retrieved Matter . | . . . Parts Self-Destructed 4 | . . 4 Prevented . | . . . Kills | -11 -10 -10 ------- Run | Yrd Mat Sub Combat Hostiles Destroyed 9 | . 8 1 Guns 1 | . 1 . AOE 8 | . 7 1 Classes Destroyed 11 | . 10 1 Worker 1 | . 1 . Builder 5 | . 5 . Tunneler 1 | . 1 . Hauler 2 | . 2 . Recycler 1 | . 1 . Mechanic 1 | . 1 . Operator 2 | . 2 . Watcher 2 | . 2 . Swarmer 3 | . 3 . Grunt 5 | . 5 . Subdweller 1 | . . 1 Best Kill Streak 8 | . 8 1 Combat Bots Only 5 | . 5 1 Max Kills in Single Turn 4 | . 4 1 Gunslinging . | . . . Exploded 2 | . 2 1 Melee . | . . . Uniques/NPCs Destroyed . | . . . Combat | -11 -10 -10 -------- Run | Yrd Mat Sub Hostile Shots Fired 105 | . 15 90 Missed 31 | . 4 27 Damage Taken 1206 | . 203 1003 Core 253 | . 14 239 Absorbed by Shields . | . . . Core Remaining (%) 100 | 100 . . Volleys Fired 51 | . 40 11 Largest 2 | . 2 2 Hottest 60 | . 60 53 Shots Fired 78 | . 56 22 Gun 48 | . 37 11 Cannon . | . . . Launcher 30 | . 19 11 Special . | . . . Kinetic 33 | . 22 11 Thermal . | . . . Explosive 30 | . 19 11 Electromagnetic 15 | . 15 . Robot Hit Streak 10 | . 10 5 Robot Miss Streak 2 | . 2 2 Penetration Max . | . . . Secondary Targets . | . . . Shots Hit Robots 48 | . 32 16 Core Hits 44 | . 34 10 Critical Kills . | . . . Critical Parts Destroyed . | . . . Critical Strikes . | . . . Melee Attacks . | . . . Impact . | . . . Slashing . | . . . Piercing . | . . . Sneak Attacks . | . . . Combat Hostiles . | . . . Follow-up Attacks . | . . . Damage Inflicted 2430 | . 1541 889 Guns 343 | . 244 99 Cannons . | . . . Explosions 2087 | . 1297 790 Melee . | . . . Ramming . | . . . Kinetic 217 | . 118 99 Thermal . | . . . Explosive 1868 | . 1078 790 Electromagnetic 345 | . 345 . Impact . | . . . Slashing . | . . . Piercing . | . . . Highest Corruption . | . . . Average Corruption . | . . . Corruption Purged . | . . . Corruption Blocked . | . . . Overload Shots . | . . . Overflow Damage 27 | . 27 . Projectiles . | . . . Explosions 27 | . 27 . Melee . | . . . Knockbacks . | . . . Impact . | . . . Kinetic . | . . . Secondary . | . . . Self-Inflicted Damage 122 | . 87 35 Shots 5 | . 4 1 Rammed . | . . . Targets Rammed . | . . . Kicked . | . . . Crushed . | . . . Highest Temperature 271 | . 76 271 Average Temperature 53 | . 22 137 Received Heat Transfer 792 | . 60 732 Siege Activations . | . . . Robots Corrupted . | . . . Combat Hostiles . | . . . Parts Fried 1 | . 1 . Impact Corruptions . | . . . Robots Melted . | . . . Combat Hostiles . | . . . Parts Melted . | . . . Heat Transferred . | . . . Parts Sabotaged . | . . . Parts Stolen . | . . . Parts Stripped . | . . . Power Chain Reactions 1 | . 1 . Alert | -11 -10 -10 ------- Run | Yrd Mat Sub Peak Influence 452 | . 452 . Initial . | . . . Average 140 | . 150 . Maximum Alert Level 2 | . 2 . Low Security (%) 77 | 100 75 . Level 1 16 | . 17 . Level 2 5 | . 6 . Level 3 . | . . . Level 4 . | . . . Level 5 . | . . . High Security . | . . . Max Security . | . . . Squads Dispatched 1 | . 1 . Investigation 1 | . 1 . Extermination . | . . . Reinforcement . | . . . Assault . | . . . Garrison . | . . . Intercept . | . . . Searches Triggered . | . . . Construction Impeded . | . . . Haulers Reinforced . | . . . Active Scanning Responses . | . . . Cargo Convoy Interrupts . | . . . Stealth | -11 -10 -10 --------- Run | Yrd Mat Sub Distress Signals 1 | . 1 . Communications Jammed . | . . . Distress Signals . | . . . Times Spotted 24 | . 15 9 Peak Tracking Total 5 | . 3 5 Tactical Retreats 1 | . 1 . Traps | -11 -10 -10 ------- Run | Yrd Mat Sub Traps Triggered 1 | . 1 . Indirectly . | . . . Trap Hack Attempts . | . . . Triggered . | . . . Disarmed . | . . . Reprogrammed . | . . . Reused . | . . . Traps Extracted . | . . . Installed . | . . . Triggered . | . . . Machines | -11 -10 -10 ---------- Run | Yrd Mat Sub Machines Disabled 8 | . 8 . Max in Single Turn 2 | . 2 . Machines Repaired . | . . . Machines Dismantled . | . . . Machines Sabotaged . | . . . Overloaded Fab Kills . | . . . Hacking | -11 -10 -10 --------- Run | Yrd Mat Sub Machines Accessed 8 | . 8 . Terminals 6 | . 6 . Fabricators . | . . . Repair Stations . | . . . Recycling Units 2 | . 2 . Scanalyzers . | . . . Garrison Access . | . . . Total Hacks 21 | . 21 . Successful 12 | . 12 . Failed 9 | . 9 . Catastrophic 1 | . 1 . Database Lockouts . | . . . Manual 3 | . 3 . Terminals 17 | . 17 . Fabricators . | . . . Repair Stations . | . . . Recycling Units 4 | . 4 . Scanalyzers . | . . . Garrison Access . | . . . Terminal Hacks 8 | . 8 . Robot Analysis 1 | . 1 . Prototype ID Bank 4 | . 4 . Repair Station Index 1 | . 1 . Registered Components 1 | . 1 . Zone Layout 1 | . 1 . Fabricator Hacks . | . . . Repair Station Hacks . | . . . Recycling Unit Hacks 4 | . 4 . Process 1 | . 1 . Report Inventory 1 | . 1 . Retrieve Components 2 | . 2 . Scanalyzer . | . . . Garrison Access Hacks . | . . . Unauthorized Hacks . | . . . Terminals . | . . . Fabricators . | . . . Repair Stations . | . . . Recycling Units . | . . . Scanalyzers . | . . . Garrison Access . | . . . Data Cores Recovered . | . . . Used . | . . . Hacking Detections 5 | . 5 . Full Trace Events . | . . . Feedback Events . | . . . Feedback Blocked . | . . . Robot Schematics Acquired . | . . . Robots Built . | . . . Authchips . | . . . Time . | . . . Total Robot Build Rating . | . . . Part Schematics Acquired . | . . . Parts Built . | . . . Authchips . | . . . Time . | . . . Total Part Build Rating . | . . . Parts Repaired . | . . . Time . | . . . Parts Recycled . | . . . Recycled Matter . | . . . Retrieved Matter . | . . . Retrieved Components 14 | . 14 . Parts Scanalyzed . | . . . Part Schematics Acquired . | . . . Parts Damaged . | . . . Bothacking | -11 -10 -10 ------------ Run | Yrd Mat Sub Used RIF Installer . | . . . Robots Hacked . | . . . Non-combat . | . . . Combat . | . . . Robot Hacks Applied . | . . . Relay Couplers Released . | . . . Fabnet Peak Effective % . | . . . Robots Rewired . | . . . Allies Hacked . | . . . Hacks Repelled . | . . . Allies | -11 -10 -10 -------- Run | Yrd Mat Sub Total Allies . | . . . Largest Group . | . . . Highest-Rated Group . | . . . Highest-Rated Ally . | . . . Total Orders . | . . . Ally Attacks . | . . . Total Damage . | . . . Kills . | . . . Allies Corrupted . | . . . Allies Melted . | . . . Intel | -11 -10 -10 ------- Run | Yrd Mat Sub Robot Analysis Total 1 | . 1 . Derelict Logs Recovered . | . . . Drone Launches . | . . . Drone Recoveries . | . . . Exploration | -11 -10 -10 ------------- Run | Yrd Mat Sub Turns Passed 1278 | 64 899 315 Spaces Moved 908 | 50 689 169 Core 4 | 1 . 3 Treads 150 | . . 150 Legs . | . . . Wheels 754 | 49 689 16 Hover . | . . . Flight . | . . . Fastest Speed 50 | 50 100 100 Average Speed 111 | 99 100 162 Slowest Speed 450 | 100 100 450 Overloaded Moves . | . . . Propulsion Burnouts . | . . . Robots Hopped . | . . . Cave-ins Triggered . | . . . Exploration Rate (%) 38 | 4 90 22 Regions Visited 2 Branch Regions 1 Pre-discovered Areas . | . . . Known Exits Taken . | . . . Unknown Exits Taken 2 | 1 1 . Scrap Searched . | . . . Spaces Dug 11 | . 11 . Terrain Destroyed 170 | . 131 39 Melee . | . . . Projectile . | . . . AOE 170 | . 131 39 Terrain Rammed . | . . . Walls Destroyed . | . . . Machines Disabled . | . . . Actions | -11 -10 -10 --------- Run | Yrd Mat Sub Total 1101 | 64 849 188 Wait 97 | . 96 1 Move 906 | 49 688 169 Hop . | . . . Pick Up 22 | 9 13 . Fast Attach . | . . . Attach 16 | 6 4 6 Detach 4 | . 3 1 Swap 2 | . 2 . Drop 3 | . 3 . Fire 51 | . 40 11 Melee . | . . . Ram . | . . . Kick . | . . . Crush . | . . . Escape Stasis . | . . . Rewire . | . . . Trap . | . . . Miscellaneous . | . . . Route ------- -11/Scrapyard -10/Materials (discovered 5 exits: [*Mat x2] / [*Min x2] / [*Sub]) -10/Subcaves History --------- Turn | Location | Event 8 | -11/Scrapyard | Discovered new exit (range 16) 65 | -11/Scrapyard | Entered Materials 226 | -10/Materials | Discovered new exit (range 5) 237 | -10/Materials | Discovered new exit (range 16) 311 | -10/Materials | Build established: Mutant 488 | -10/Materials | Discovered new exit (range 15) 818 | -10/Materials | Discovered new exit (range 14) 957 | -10/Materials | Discovered new exit (range 8) 964 | -10/Materials | Entered Subcaves 981 | -10/Subcaves | Ambushed by Subdweller buried in earth 1216 | -10/Subcaves | Lost 3 parts (1p2w) 1220 | -10/Subcaves | Core integrity fell below 50% 1275 | -10/Subcaves | Core integrity fell below 20% 1279 | -10/Subcaves | Destroyed by S-10 Pest with Light Assault Rifle Last Messages --------------- 01018_ The unstable cave ceiling collapses. 01032_ Subatomizers dissect the Disposable Heat Sink. 01041_ The unstable cave ceiling collapses. 01062_ Subatomizers dissect the Disposable Heat Sink, destroying it. 01075_ Seismic Detector destroyed. 01075_ Critical hit (Meltdown: +270). 01127_ Acquired 5 matter. 01148_ Ion Engine destroyed. 01175_ Rocket Launcher destroyed. 01185_ Assault Rifle destroyed. 01247_ Critical hit (Meltdown: +300). 01251_ Lgt. Treads destroyed. 01264_ S-10 Pest destroyed. 01267_ Subatomizers dissect the Lgt. Assault Rifle. 01270_ Flight Unit fries itself beyond repair. 01274_ Ion Engine destroyed. [Achievement: Back For More] Map ----- +----------------------------------------------------+ | | | | | | | ?????????????????????????????????????????????????? | | ?????????????????????????????????????????????????? | | ?????????????????????????????????????????????????? | | ?????????????????????????????????????????????????? | | ?????????????????????????????????????????????????? | | ?????????????????????????????????????????????????? | | ?????????????????????????????????????????????????? | | ?????????????????????????????????????????????????? | | ?????????????????????????????????????????????????? | | ?????????????????????????????????????????????????? | | ?????????????????????????????????????????????????? | | ?????????????????????????????????????????????????? | | ?????????????????????????????????????????????????? | | ?????????????????????????????????????????????????? | | ?????????????????????????????????????????????????? | | ????????????????????????????#######?#????????????? | | ??????????????# ????????### # #????????????? | | ?????????????## ???????? ??????????????? | | ?????????????# ?????? ???????????????? | | ?????????????? ????? $?????????????????? | | ?????????????????# #???# #??????????????????? | | ?????????????????# ### s#???????????????????? | | ??????????????????# @ ##??????????????????? | | ??????????????????## #??????????????????? | | ???????????????????## ## #??????????????????? | | ????????????????????## #?##s ##???? #??????????? | | ?????????????????????###?### # ## #??????????? | | ???????????????????????### #??????????? | | ???????????????????????# =[ # #?????????? | | ???????????????????????##%[# #? #? #???????? | | ???????????????????????##==####?? #?????????????? | | ???????????????????????# #????? #?????????????? | | ???????????????????????## #??????#?????????????? | | ???????????????????????## ##????????????????????? | | ???????????????????????# ##????????????????????? | | ???????????????????????# #????????????????????? | | ???????????????????????# #????????????????????? | | ???????????????????????# ##????????????????????? | | ???????????????????????# #????????????????????? | | ???????????????????????# ##????????????????????? | | ???????????????????????# #????????????????????? | | ???????????????????????## ##????????????????????? | | ??????????????????????### #?????????????????????? | | ??????????????????????# ###???????????????????? | | ##?????#?????#####???## #???????????????????? | | ###### ?#### ##### #???????????????????? | | ## # # ## ##??????????????????? | +----------------------------------------------------+ Best States ------------- Heat Dissipation 25 Energy Generation 10 Energy Capacity 250 Matter Stores 300 Matter Capacity 300 Sight Range 16 Terrain Scan Density 10 Evasion (%) 40 Targeting Accuracy 5 Recoil Reduction 2 Item Schematics ----------------- None Robot Schematics ------------------ None Fabricated ------------ Nothing Alien Tech Used ----------------- None Achievements -------------- Back For More Challenges ------------ None Game ------ Seed RefineryShrapnelAccelerator Manual? 0 Play Time 00:18:54 Cumulative 25.3 hours Start 2024.04.17 @ 21:23:56 End 2024.04.17 @ 21:43:45 Sessions 1 Manual Loads 0 Difficulty Rogue Special Mode None Game No. 50 Rogue 50 Adventurer 0 Explorer 0 Win Type - Total 0 Types 0/0/0/0/0/0/0/0/0 Lore% 19 Gallery% 23 Achievement% 20 Wizard Run 0 Options --------- Layout 1 ASCII 0 Keyboard 1 Movement Numpad Keybinds 0 Fullscreen 1 Font 24/Smallcaps Map View 50x35 Zoom Use 0% Tactical HUD 1 Map Filters NONE Filters NONE Steam 1 RUN: 1e69f774-4cbb-44c1-9fdb-653b54f84622